fUST/lending_fUST_20240302
["ID","MTS","AMOUNT","RATE_DAILY","PERIOD"]
[315994847,1709317850061,-2132.0,0.00024164,2]
[315994849,1709317850077,-151.0,0.00024355,2]
[315994852,1709317850093,-151.0,0.00024355,2]
[315994854,1709317850107,-234.302427,0.00024355,2]
[315994856,1709317850120,-151.0,0.00024355,2]
[315994858,1709317850131,-184.0,0.00024355,2]
[315994861,1709317850146,-151.0,0.00024359,2]
[315994863,1709317850158,-151.0,0.00024359,2]
[315994865,1709317850173,-151.0,0.00024359,2]
[315994868,1709317850185,-151.0,0.00024359,2]
[315994870,1709317850197,-151.0,0.00024359,2]
[315994872,1709317850209,-151.0,0.00024359,2]
[315994874,1709317850222,-151.260597,0.00024359,2]
[315994876,1709317850235,-151.0,0.00024359,2]
[315994878,1709317850247,-151.161043,0.00024359,2]
[315994881,1709317850259,-151.0,0.00024359,2]
[315994883,1709317850271,-151.0,0.00024359,2]
[315994885,1709317850283,-151.0,0.00024359,2]
[315994887,1709317850296,-151.0,0.00024359,2]
[315994889,1709317850308,-151.0,0.00024359,2]
[315994892,1709317850321,-151.0,0.00024359,2]
[315994894,1709317850333,-151.0,0.00024359,2]
[315994896,1709317850346,-151.0,0.00024359,2]
[315994898,1709317850358,-151.0,0.00024359,2]
[315994900,1709317850368,-151.0,0.00024359,2]
[315994902,1709317850377,-151.0,0.00024359,2]
[315994904,1709317850387,-151.0,0.00024359,2]
[315994906,1709317850397,-151.0,0.00024359,2]
[315994908,1709317850407,-151.0,0.00024359,2]
[315994910,1709317850417,-151.0,0.00024359,2]
[315994912,1709317850427,-151.0,0.00024359,2]
[315994914,1709317850436,-159.193095,0.00024359,2]
[315994916,1709317850446,-156.936278,0.00024359,2]
[315994918,1709317850456,-156.936278,0.00024359,2]
[315994920,1709317850466,-156.936278,0.00024359,2]
[315994922,1709317850475,-156.936278,0.00024359,2]
[315994924,1709317850485,-156.936278,0.00024359,2]
[315994926,1709317850494,-156.936278,0.00024359,2]
[315994927,1709317850504,-156.936278,0.00024359,2]
[315994929,1709317850514,-156.936278,0.00024359,2]
[315994931,1709317850524,-156.936278,0.00024359,2]
[315994933,1709317850534,-156.936278,0.00024359,2]
[315994935,1709317850544,-156.936278,0.00024359,2]
[315994937,1709317850554,-156.936278,0.00024359,2]
[315994940,1709317850564,-156.936278,0.00024359,2]
[315994942,1709317850576,-156.936278,0.00024359,2]
[315994943,1709317850587,-156.936278,0.00024359,2]
[315994958,1709317850694,-156.936278,0.00024359,2]
[315994961,1709317850748,-156.936278,0.00024359,2]
[315994963,1709317850758,-156.936278,0.00024359,2]
[315994965,1709317850767,-156.936278,0.00024359,2]
[315994967,1709317850776,-156.936269,0.00024359,2]
[315994969,1709317850787,-165.285975,0.00024427,2]
[315994971,1709317850797,-165.285975,0.00024427,2]
[315994973,1709317850807,-177.237638,0.00024427,2]
[315994975,1709317850817,-463.118994,0.00024427,2]
[315994977,1709317850828,-3689.745188,0.00024427,2]
[315994979,1709317850838,-2503.447058,0.00024427,2]
[315994981,1709317850847,-115528.45876551,0.00024436,2]
[315994983,1709317850857,-222.50982687,0.00024436,10]
[315994984,1709317850867,-150.0,0.00024436,2]
[315994986,1709317850877,-1011.37501432,0.00024436,10]
[315994988,1709317850891,-150.80934766,0.00024436,2]
[315994990,1709317850900,-775.10991772,0.00024436,2]
[315994992,1709317850911,-4054.79825514,0.00024436,2]
[315994994,1709317850920,-312.98812978,0.00024436,2]
[315994996,1709317850931,-87222.84414611,0.00024436,2]
[315994998,1709317850941,-1181.42213623,0.00024436,14]
[315995000,1709317850951,-278.87160744,0.00024436,2]
[315995002,1709317850961,-100124.52744012,0.00024436,2]
[315995004,1709317850973,-2000.0556361,0.00024436,2]
[315995006,1709317850984,-9861.75803279,0.00024436,2]
[315995008,1709317850994,-284.15692024,0.00024436,2]
[315995010,1709317851004,-18851.45505289,0.00024436,2]
[315995012,1709317851015,-1142.7732995,0.00024436,2]
[315995014,1709317851025,-10828.09676395,0.00024436,2]
[315995016,1709317851035,-416223.8510576,0.00024436,30]
[315995029,1709317851170,-200.7008514,0.00020078,2]
[315995031,1709317851180,-500.0,0.00020547,2]
[315995033,1709317851189,-500.0,0.00020888,2]
[315995035,1709317851199,-500.0,0.00020889,2]
[315995037,1709317851209,-5057.96,0.00020989,3]
[315995039,1709317851219,-500.0,0.00020997,2]
[315995041,1709317851230,-500.0,0.00020997,2]
[315995043,1709317851240,-500.0,0.00020998,2]
[315995045,1709317851251,-500.0,0.00020998,2]
[315995047,1709317851262,-500.0,0.00020998,2]
[315995049,1709317851271,-500.0,0.00020998,2]
[315995050,1709317851281,-500.0,0.00020998,2]
[315995052,1709317851293,-500.0,0.00020998,2]
[315995054,1709317851303,-500.0,0.00020998,2]
[315995056,1709317851313,-522.36,0.00020998,2]
[315995058,1709317851324,-30921.74621744,0.00024552,30]
[315995061,1709317851338,-500.0,0.00024552,30]
[315995065,1709317851374,-500.0,0.00020999,2]
[315995067,1709317851385,-114.56868611,0.00020999,2]
[315995856,1709317993473,235.6231648,0.00016696,2]
[315995858,1709318077888,155.69290525,0.00016696,2]
[315995916,1709319034207,-205.70394303,0.00017682,2]
[315995918,1709319034217,-186.25061937,0.00017683,2]
[315995920,1709319034226,-155.12254681,0.00017684,2]
[315995922,1709319034235,-309.60917257,0.00017685,2]
[315995924,1709319034244,-380.22974375,0.00017685,2]
[315995929,1709319034276,-400.0,0.00017685,2]
[315995931,1709319034288,-674.85999156,0.00017685,2]
[315995933,1709319034301,-14472.97384092,0.00017685,2]
[315995935,1709319034314,-1149.86615988,0.00017686,2]
[315995938,1709319034329,-1315.65251719,0.00017686,2]
[315995940,1709319034341,-1126.09151239,0.00017686,2]
[315996051,1709319040583,-566.9562609,0.00017686,2]
[315996053,1709319040596,-685.49330367,0.00017686,2]
[315996056,1709319040608,-4390.89415731,0.00017686,2]
[315996058,1709319040620,-15665.04608866,0.00017686,2]
[315996060,1709319040631,-164.779489,0.00017797,2]
[315996062,1709319040640,-155.9343067,0.00018,2]
[315996064,1709319040650,-5445.53710548,0.00018,2]
[315996066,1709319040660,-155.12254681,0.00019,2]
[315996068,1709319040670,-166.666666,0.00019178,2]
[315996070,1709319040679,-644.8356793,0.00019339,2]
[315996072,1709319040689,-155.2615267,0.0002,2]
[315996074,1709319040699,-400.0,0.0002,2]
[315996076,1709319040708,-155.12254681,0.0002,2]
[315996078,1709319040717,-20840.03860396,0.0002,2]
[315996080,1709319040726,-238.53127687,0.00020273,2]
[315996082,1709319040736,-4580.83,0.00020274,3]
[315996084,1709319040745,-3817.36,0.00020274,3]
[315996086,1709319040755,-21856.2795863,0.00020295,5]
[315996088,1709319040764,-805.23135318,0.00020295,5]
[315996090,1709319040774,-1861.58884535,0.00020295,5]
[315996092,1709319040784,-21344.59667052,0.00020295,5]
[315996094,1709319040794,-621.24178397,0.00020306,2]
[315996096,1709319040807,-2962.84488373,0.0002044,2]
[315996098,1709319040817,-3421.90613779,0.00020441,2]
[315996100,1709319040829,-2752.94104449,0.00020443,2]
[315996102,1709319040839,-757.86304111,0.00020447,2]
[315996104,1709319040850,-500.0,0.00020547,2]
[315996106,1709319040861,-640.06006059,0.00020547,2]
[315996108,1709319040872,-500.0,0.00020547,2]
[315996110,1709319040883,-500.0,0.00020547,2]
[315996112,1709319040893,-500.0,0.00020547,2]
[315996114,1709319040903,-500.9495085,0.00020547,2]
[315996116,1709319040913,-500.61198271,0.00020547,2]
[315996118,1709319040923,-500.0,0.00020547,2]
[315996120,1709319040933,-500.0,0.00020547,2]
[315996122,1709319040942,-398.08673107,0.00020547,2]
[315996124,1709319040951,-451.7253466,0.00020547,2]
[315996126,1709319040961,-500.0,0.00020547,2]
[315996128,1709319040973,-500.0,0.00020547,2]
[315996130,1709319040982,-500.0,0.00020547,2]
[315996132,1709319040992,-500.0,0.00020547,2]
[315996134,1709319041001,-500.0,0.00020547,2]
[315996136,1709319041012,-500.0,0.00020547,2]
[315996138,1709319041021,-500.0,0.00020547,2]
[315996140,1709319041031,-500.0,0.00020547,2]
[315996142,1709319041041,-500.0,0.00020547,2]
[315996144,1709319041054,-500.0,0.00020547,2]
[315996146,1709319041064,-331.87495185,0.00020547,2]
[315996148,1709319041074,-500.0,0.00020547,2]
[315996149,1709319041085,-500.0,0.00020547,2]
[315996152,1709319041095,-500.0,0.00020547,2]
[315996154,1709319041105,-500.0,0.00020547,2]
[315996155,1709319041115,-373.9,0.00020547,2]
[315996157,1709319041125,-500.0,0.00020547,2]
[315996159,1709319041135,-500.0,0.00020547,2]
[315996161,1709319041145,-500.0,0.00020547,2]
[315996163,1709319041155,-500.0,0.00020547,2]
[315996165,1709319041165,-500.0,0.00020547,2]
[315996167,1709319041176,-500.0,0.00020547,2]
[315996169,1709319041188,-500.0,0.00020547,2]
[315996171,1709319041198,-503.43631335,0.00020547,2]
[315996173,1709319041207,-500.0,0.00020547,2]
[315996175,1709319041217,-500.0,0.00020547,2]
[315996177,1709319041227,-500.0,0.00020547,2]
[315996179,1709319041237,-500.0,0.00020547,2]
[315996181,1709319041246,-500.0,0.00020547,2]
[315996183,1709319041258,-500.0,0.00020547,2]
[315996185,1709319041267,-500.0,0.00020547,2]
[315996187,1709319041276,-500.0,0.00020547,2]
[315996189,1709319041285,-500.0,0.00020547,2]
[315996191,1709319041295,-500.0,0.00020547,2]
[315996193,1709319041307,-500.0,0.00020547,2]
[315996195,1709319041317,-176.07242424,0.00020547,2]
[315996211,1709319041450,-500.0,0.00020547,2]
[315996213,1709319041459,-500.0,0.00020547,2]
[315996215,1709319041469,-500.0,0.00020547,2]
[315996217,1709319041478,-500.0,0.00020547,2]
[315996219,1709319041487,-500.0,0.00020547,2]
[315996221,1709319041496,-500.0,0.00020547,2]
[315996222,1709319041505,-500.0,0.00020547,2]
[315996224,1709319041515,-385.43131389,0.00020547,2]
[315996226,1709319041524,-500.0,0.00020547,2]
[315996229,1709319041535,-424.97104474,0.00020547,2]
[315996231,1709319041544,-500.0,0.00020547,2]
[315996233,1709319041556,-500.0,0.00020547,2]
[315996235,1709319041565,-500.0,0.00020547,2]
[315996237,1709319041575,-500.0,0.00020547,2]
[315996239,1709319041584,-168.1003179,0.00020547,2]
[315996241,1709319041593,-500.0,0.00020547,2]
[315996243,1709319041602,-501.75610405,0.00020547,2]
[315996245,1709319041611,-500.0,0.00020547,2]
[315996247,1709319041621,-500.0,0.00020547,2]
[315996249,1709319041630,-500.0,0.00020547,2]
[315996251,1709319041639,-500.0,0.00020547,2]
[315996253,1709319041649,-500.0,0.00020547,2]
[315996255,1709319041658,-500.0,0.00020547,2]
[315996256,1709319041668,-500.0,0.00020547,2]
[315996258,1709319041678,-613.40564706,0.00020547,2]
[315996260,1709319041687,-500.0,0.00020547,2]
[315996262,1709319041696,-500.0,0.00020547,2]
[315996264,1709319041705,-500.0,0.00020547,2]
[315996265,1709319041715,-531.13319968,0.00020547,2]
[315996266,1709319041724,-500.0,0.00020547,2]
[315996267,1709319041733,-503.56998405,0.00020547,2]
[315996268,1709319041742,-500.0,0.00020547,2]
[315996269,1709319041752,-344.54402551,0.00020547,2]
[315996270,1709319041761,-500.57589758,0.00020547,2]
[315996271,1709319041770,-455.14663628,0.00020547,2]
[315996272,1709319041779,-500.90868185,0.00020547,2]
[315996273,1709319041789,-500.0,0.00020547,2]
[315996274,1709319041798,-500.0,0.00020547,2]
[315996275,1709319041810,-500.0,0.00020547,2]
[315996276,1709319041819,-500.0,0.00020547,2]
[315996277,1709319041828,-500.0,0.00020547,2]
[315996278,1709319041838,-500.0,0.00020547,2]
[315996279,1709319041847,-500.0,0.00020547,2]
[315996280,1709319041856,-500.0,0.00020547,2]
[315996281,1709319041866,-500.0,0.00020547,2]
[315996282,1709319041875,-500.0,0.00020547,2]
[315996283,1709319041884,-500.0,0.00020547,2]
[315996284,1709319041893,-500.0,0.00020547,2]
[315996285,1709319041902,-500.0,0.00020547,2]
[315996286,1709319041911,-500.0,0.00020547,2]
[315996287,1709319041921,-500.0,0.00020547,2]
[315996288,1709319041929,-500.0,0.00020547,2]
[315996289,1709319041938,-500.0,0.00020547,2]
[315996290,1709319041947,-500.0,0.00020547,2]
[315996292,1709319041957,-500.0,0.00020547,2]
[315996294,1709319041966,-500.0,0.00020547,2]
[315996296,1709319041975,-500.0,0.00020547,2]
[315996298,1709319041985,-500.0,0.00020547,2]
[315996300,1709319041994,-500.0,0.00020547,2]
[315996302,1709319042003,-500.0,0.00020547,2]
[315996304,1709319042012,-1059.45,0.00020547,2]
[315996306,1709319042021,-1059.45,0.00020547,2]
[315996308,1709319042032,-1059.45,0.00020547,2]
[315996310,1709319042041,-500.0,0.00020547,2]
[315996312,1709319042050,-500.0,0.00020547,2]
[315996314,1709319042061,-500.0,0.00020547,2]
[315996316,1709319042070,-500.0,0.00020547,2]
[315996318,1709319042079,-500.0,0.00020547,2]
[315996320,1709319042088,-500.0,0.00020547,2]
[315996321,1709319042098,-644.46285568,0.00020547,2]
[315996322,1709319042107,-500.0,0.00020547,2]
[315996323,1709319042116,-500.0,0.00020547,2]
[315996324,1709319042126,-500.0,0.00020547,2]
[315996325,1709319042136,-500.0,0.00020547,2]
[315996326,1709319042146,-500.0,0.00020547,2]
[315996327,1709319042155,-500.0,0.00020547,2]
[315996328,1709319042164,-500.0,0.00020547,2]
[315996329,1709319042175,-500.0,0.00020547,2]
[315996330,1709319042185,-500.0,0.00020547,2]
[315996331,1709319042197,-500.0,0.00020547,2]
[315996332,1709319042207,-500.0,0.00020547,2]
[315996334,1709319042216,-500.0,0.00020547,2]
[315996336,1709319042227,-500.0,0.00020547,2]
[315996337,1709319042237,-500.0,0.00020547,2]
[315996338,1709319042247,-500.0,0.00020547,2]
[315996339,1709319042256,-500.0,0.00020547,2]
[315996340,1709319042266,-500.0,0.00020547,2]
[315996341,1709319042276,-500.0,0.00020547,2]
[315996343,1709319042288,-316.8,0.00020547,2]
[315996345,1709319042297,-500.0,0.00020888,2]
[315996347,1709319042307,-500.0,0.00020888,2]
[315996349,1709319042317,-629.37,0.00020888,2]
[315996350,1709319042326,-1059.45,0.00020888,2]
[315996351,1709319042335,-500.0,0.00020889,2]
[315996352,1709319042344,-500.0,0.00020889,2]
[315996354,1709319042353,-500.0,0.00020889,2]
[315996355,1709319042363,-500.0,0.00020889,2]
[315996356,1709319042372,-500.0,0.00020889,2]
[315996358,1709319042385,-8234.00193465,0.0002089,2]
[315996360,1709319042394,-500.0,0.00020895,2]
[315996362,1709319042403,-192.40668639,0.00020957,2]
[315996364,1709319042413,-330.19028619,0.00020997,2]
[315996367,1709319042422,-400.3416809,0.00020997,2]
[315996369,1709319042431,-179.82350877,0.00020997,2]
[315996371,1709319042440,-267.21087934,0.00020997,2]
[315996373,1709319042450,-500.0,0.00020997,2]
[315996375,1709319042459,-500.0,0.00020997,2]
[315996376,1709319042468,-500.0,0.00020997,2]
[315996378,1709319042477,-500.0,0.00020998,2]
[315996380,1709319042486,-500.0,0.00020998,2]
[315996382,1709319042496,-500.0,0.00020998,2]
[315996384,1709319042506,-500.0,0.00020999,2]
[315996386,1709319042515,-155.07598723,0.00020999,2]
[315996388,1709319042524,-300.0,0.00021,9]
[315996390,1709319042533,-175.5,0.00021,2]
[315996392,1709319042543,-224.07182095,0.00021176,2]
[315996393,1709319042554,-620.0620892,0.00021321,2]
[315996395,1709319042563,-757.8630411,0.00021415,2]
[315996397,1709319042572,-166.666666,0.00021422,2]
[315996399,1709319042581,-500.0,0.00021917,2]
[315996401,1709319042590,-500.0,0.00021917,2]
[315996403,1709319042600,-500.0,0.00021917,2]
[315996405,1709319042610,-500.0,0.00021917,2]
[315996407,1709319042619,-500.0,0.00021917,2]
[315996409,1709319042628,-51927.2960889,0.00021918,15]
[315996411,1709319042638,-1413.25406,0.00021918,2]
[315996412,1709319042647,-400.0,0.00021918,2]
[315996413,1709319042656,-266.0,0.00022,2]
[315996414,1709319042666,-845.0,0.00022,2]
[315996415,1709319042674,-196.0,0.00022,2]
[315996417,1709319042684,-1130.52008354,0.00022,2]
[315996419,1709319042693,-542.92772373,0.00022188,2]
[315996420,1709319042703,-500.0,0.00022189,2]
[315996422,1709319042711,-266.0,0.00022192,2]
[315996424,1709319042720,-845.0,0.00022192,2]
[315996426,1709319042729,-580.0,0.000223,2]
[315996428,1709319042739,-571.46516516,0.00022336,2]
[315996430,1709319042748,-757.8630411,0.00022383,2]
[315996432,1709319042757,-620.00310446,0.00022387,2]
[315996434,1709319042766,-845.0,0.00022466,2]
[315996436,1709319042775,-300.0,0.000225,10]
[315996437,1709319042784,-151.0,0.0002267,2]
[315996438,1709319042793,-500.0,0.00022738,2]
[315996439,1709319042804,-500.0,0.00022739,2]
[315996440,1709319042814,-1059.45,0.00022739,2]
[315996441,1709319042823,-845.0,0.0002274,2]
[315996442,1709319042832,-500.0,0.00022999,2]
[315996443,1709319042842,-500.0,0.00022999,2]
[315996444,1709319042852,-500.0,0.00022999,2]
[315996445,1709319042861,-500.0,0.00022999,2]
[315996447,1709319042871,-1209.0,0.00023,7]
[315996448,1709319042880,-845.0,0.00023014,2]
[315996449,1709319042889,-266.0,0.00023014,2]
[315996450,1709319042898,-197.0,0.00023014,2]
[315996451,1709319042907,-845.0,0.00023014,2]
[315996452,1709319042916,-257.28617577,0.00023029,5]
[315996453,1709319042926,-1643.3292922,0.00023029,5]
[315996454,1709319042935,-180.10032304,0.00023029,5]
[315996455,1709319042944,-323.11524646,0.00023029,5]
[315996456,1709319042954,-189.95804544,0.00023029,5]
[315996458,1709319042963,-1524.61404789,0.00023029,5]
[315996459,1709319042972,-544.22,0.00023131,2]
[315996461,1709319042981,-228.08,0.00023131,2]
[315996463,1709319042991,-500.0,0.00023131,2]
[315996465,1709319043000,-500.0,0.00023131,2]
[315996467,1709319043010,-1059.45,0.00023131,2]
[315996469,1709319043019,-500.0,0.00023131,2]
[315996471,1709319043028,-500.0,0.00023131,2]
[315996472,1709319043037,-483.84873627,0.00023131,2]
[315996474,1709319043047,-428.06540004,0.00023131,2]
[315996476,1709319043058,-50000.0,0.00023132,5]
[315996478,1709319043068,-845.0,0.00023288,2]
[315996480,1709319043077,-757.8630411,0.0002335,2]
[315996482,1709319043087,-1413.25406,0.00023452,2]
[315996484,1709319043098,-620.00015522,0.00023507,2]
[315996486,1709319043109,-1000.0,0.00023507,2]
[315996488,1709319043119,-1000.0,0.00023527,2]
[315996490,1709319043129,-1000.0,0.00023547,2]
[315996492,1709319043138,-1000.0,0.00023566,2]
[315996494,1709319043148,-1000.0,0.00023586,2]
[315996496,1709319043158,-307.7275779,0.00023589,2]
[315996498,1709319043168,-401.2465702,0.00023589,2]
[315996500,1709319043179,-1000.0,0.00023606,2]
[315996502,1709319043189,-1000.0,0.00023626,2]
[315996504,1709319043202,-1000.0,0.00023646,2]
[315996506,1709319043212,-1000.0,0.00023666,2]
[315996508,1709319043223,-1000.0,0.00023686,2]
[315996510,1709319043233,-174.27868611,0.00023705,2]
[315996512,1709319043243,-1000.0,0.00023706,2]
[315996514,1709319043253,-1000.0,0.00023726,2]
[315996515,1709319043263,-1000.0,0.00023746,2]
[315996517,1709319043272,-1000.0,0.00023766,2]
[315996519,1709319043282,-1000.0,0.00023786,2]
[315996521,1709319043291,-1000.0,0.00023806,2]
[315996523,1709319043306,-1000.0,0.00023826,2]
[315996525,1709319043315,-1000.0,0.00023846,2]
[315996527,1709319043324,-1000.0,0.00023866,2]
[315996529,1709319043333,-500.0,0.00023885,2]
[315996531,1709319043342,-1000.0,0.00023886,2]
[315996533,1709319043352,-1000.0,0.00023906,2]
[315996535,1709319043362,-500.0,0.00023925,2]
[315996537,1709319043371,-500.0,0.00023925,2]
[315996539,1709319043380,-1000.0,0.00023926,2]
[315996541,1709319043389,-845.0,0.00023934,2]
[315996543,1709319043398,-1598.848548,0.00023946,2]
[315996544,1709319043408,-300.0,0.00024,11]
[315996546,1709319043417,-153.0,0.00024,2]
[315996548,1709319043426,-153.0,0.00024,2]
[315996550,1709319043434,-153.0,0.00024,2]
[315996552,1709319043443,-153.0,0.00024,2]
[315996554,1709319043452,-857.0,0.00024164,2]
[315996556,1709319043462,-270.0,0.00024164,2]
[315996558,1709319043471,-757.8630411,0.00024318,2]
[315996560,1709319043480,-9286.58849895,0.00024322,2]
[315996562,1709319043490,-500.0,0.000244,2]
[315996564,1709319043500,-1059.45,0.00024406,2]
[315996566,1709319043508,-1059.45,0.00024407,2]
[315996568,1709319043517,-1059.45,0.00024407,2]
[315996570,1709319043527,-1059.45,0.00024407,2]
[315996572,1709319043537,-1059.45,0.00024407,2]
[315996573,1709319043546,-1059.45,0.00024407,2]
[315996575,1709319043557,-1059.45,0.00024407,2]
[315996577,1709319043566,-1059.45,0.00024407,2]
[315996579,1709319043576,-1059.45,0.00024407,2]
[315996581,1709319043585,-1059.45,0.00024407,2]
[315996582,1709319043594,-1059.45,0.00024407,2]
[315996584,1709319043604,-1059.45,0.00024407,2]
[315996586,1709319043613,-1059.45,0.00024407,2]
[315996587,1709319043623,-1059.45,0.00024407,2]
[315996588,1709319043633,-1059.45,0.00024407,2]
[315996589,1709319043643,-1059.45,0.00024407,2]
[315996590,1709319043652,-1059.45,0.00024407,2]
[315996591,1709319043661,-1059.51,0.00024407,2]
[315996592,1709319043671,-151.0,0.00024408,2]
[315996593,1709319043681,-184.0,0.00024408,2]
[315996594,1709319043690,-151.0,0.00024408,2]
[315996595,1709319043699,-151.161043,0.00024408,2]
[315996596,1709319043709,-500.0,0.00024416,2]
[315996597,1709319043718,-500.0,0.00024417,2]
[315996598,1709319043727,-500.0,0.00024417,2]
[315996599,1709319043737,-500.0,0.00024417,2]
[315996600,1709319043746,-500.0,0.00024417,2]
[315996601,1709319043755,-554.99185777,0.00024417,2]
[315996602,1709319043765,-456.12574383,0.00024417,2]
[315996603,1709319043774,-151.0,0.00024418,2]
[315996604,1709319043783,-151.0,0.00024418,2]
[315996605,1709319043792,-151.0,0.00024418,2]
[315996606,1709319043801,-151.0,0.00024418,2]
[315996607,1709319043812,-151.0,0.00024418,2]
[315996608,1709319043821,-151.0,0.00024418,2]
[315996609,1709319043830,-151.0,0.00024418,2]
[315996610,1709319043840,-299.067643,0.00024418,2]
[315996611,1709319043849,-151.0,0.00024418,2]
[315996612,1709319043858,-151.0,0.00024418,2]
[315996613,1709319043868,-151.0,0.00024418,2]
[315996614,1709319043877,-151.0,0.00024418,2]
[315996615,1709319043888,-151.0,0.00024418,2]
[315996616,1709319043897,-151.0,0.00024418,2]
[315996617,1709319043906,-151.0,0.00024418,2]
[315996618,1709319043916,-151.0,0.00024418,2]
[315996619,1709319043925,-151.0,0.00024418,2]
[315996620,1709319043935,-151.0,0.00024418,2]
[315996621,1709319043944,-151.0,0.00024418,2]
[315996622,1709319043953,-151.0,0.00024418,2]
[315996623,1709319043963,-156.936278,0.00024418,2]
[315996624,1709319043972,-156.936278,0.00024418,2]
[315996625,1709319043981,-156.936278,0.00024418,2]
[315996626,1709319043990,-156.936278,0.00024418,2]
[315996627,1709319043999,-156.936278,0.00024418,2]
[315996628,1709319044008,-156.936278,0.00024418,2]
[315996629,1709319044098,-156.936278,0.00024418,2]
[315996630,1709319044107,-156.936278,0.00024418,2]
[315996631,1709319044116,-156.936278,0.00024418,2]
[315996632,1709319044125,-156.936278,0.00024418,2]
[315996633,1709319044135,-156.936278,0.00024418,2]
[315996634,1709319044144,-156.936278,0.00024418,2]
[315996635,1709319044153,-151.0,0.00024418,2]
[315996636,1709319044163,-151.0,0.00024418,2]
[315996637,1709319044173,-234.302427,0.00024418,2]
[315996638,1709319044186,-151.0,0.00024418,2]
[315996639,1709319044195,-151.0,0.00024418,2]
[315996640,1709319044205,-151.0,0.00024418,2]
[315996641,1709319044215,-151.0,0.00024418,2]
[315996642,1709319044224,-151.0,0.00024418,2]
[315996643,1709319044234,-151.0,0.00024418,2]
[315996644,1709319044242,-151.0,0.00024418,2]
[315996645,1709319044252,-240.599993,0.00024418,2]
[315996646,1709319044261,-220.816973,0.00024418,2]
[315996647,1709319044271,-276809.57626509,0.00024418,30]
[315996648,1709319044280,-134474.6950142,0.00024418,30]
[315996649,1709319044289,-292287.33394702,0.00024418,30]
[315996650,1709319044360,-1250.25966196,0.00017685,2]
[315996651,1709319044370,-2145.05565995,0.00021908,3]
[315996693,1709319045810,-1036.07434005,0.00021908,3]
[315996695,1709319045820,-153.89,0.0002299,3]
[315996696,1709319045829,-307.78,0.0002436,3]
[315996698,1709319045839,-4120.09759316,0.00024418,30]
[315996703,1709319045877,-1695.2,0.00024418,30]
[315996706,1709319045889,-2377.64212774,0.00024418,30]
[315996725,1709319046026,-6517.5880335,0.00024418,30]
[315996727,1709319046037,-599.14949005,0.00024418,30]
[315997294,1709320232037,-155.12409928,0.00017573,2]
[315997296,1709320232047,-1250.25966196,0.00017574,2]
[315997299,1709320232066,-88.44824007,0.000176,2]
[315997301,1709320232081,-67.62327233,0.000176,2]
[315997304,1709320232092,-164.779489,0.00017991,2]
[315997306,1709320232101,-420.45071491,0.00018203,2]
[315997874,1709320237883,-155.12409928,0.00017572,2]
[315997876,1709320237894,-20390.64716719,0.00018203,2]
[315997878,1709320237903,-13876.19699957,0.00019,2]
[315997880,1709320237912,-166.308117,0.00019178,2]
[315997882,1709320237922,-166.71132,0.00019178,2]
[315997885,1709320237932,-166.666666,0.00019178,2]
[315997887,1709320237941,-620.00310451,0.00019584,2]
[315997889,1709320237951,-273.60849089,0.000197,2]
[315997891,1709320237960,-2307.64714588,0.0002,2]
[315997893,1709320237970,-2958.11858042,0.0002,2]
[315997895,1709320237980,-20840.03860396,0.0002,2]